bitfinex-derivatives/quotes_BTCF0:USTF0_20250629
["timestamp","ask_amount","ask_price","bid_price","bid_amount"]
[1751231447061,0.54235141,107530.0,107520.0,0.55718454]
[1751231447361,0.54235141,107530.0,107520.0,1.18646454]
[1751231449262,0.54235141,107530.0,107520.0,1.24227816]
[1751231449467,0.54235141,107530.0,107520.0,0.61299816]
[1751231449765,0.54235141,107530.0,107520.0,1.24151816]
[1751231450456,0.54235141,107530.0,107520.0,0.63144581]
[1751231450763,0.54235141,107530.0,107520.0,1.25992581]
[1751231452561,0.54235141,107530.0,107520.0,1.18566454]
[1751231453864,0.54235141,107530.0,107520.0,0.92407293]
[1751231454065,0.54235141,107530.0,107520.0,1.18566454]
[1751231454266,0.2807598,107530.0,107520.0,1.18566454]
[1751231454564,0.54235141,107530.0,107520.0,1.18566454]
[1751231456561,0.90315141,107530.0,107520.0,0.55718454]
[1751231456865,0.90315141,107530.0,107520.0,1.18486454]
[1751231459263,0.90315141,107530.0,107520.0,1.25912581]
[1751231465771,0.90315141,107530.0,107520.0,0.9975342]
[1751231466269,0.90315141,107530.0,107520.0,1.25912581]
[1751231466869,0.90315141,107530.0,107520.0,0.9975342]
[1751231467070,0.90315141,107530.0,107520.0,1.25912581]
[1751231468372,0.94315141,107530.0,107520.0,0.9581018]
[1751231468665,0.94315141,107530.0,107520.0,0.10963463]
[1751231468868,0.94315141,107530.0,107510.0,0.09079219]
[1751231468869,0.1487736,107520.0,107510.0,0.09079219]
[1751231469069,1.30395682,107520.0,107510.0,0.7741875]
[1751231469265,1.40402909,107520.0,107510.0,0.8381875]
[1751231469573,1.40402909,107520.0,107510.0,0.74519385]
[1751231470172,1.40402909,107520.0,107510.0,0.78237199]
[1751231470979,1.40402909,107520.0,107510.0,0.93115949]
[1751231471767,1.40402909,107520.0,107510.0,0.93215949]
[1751231474276,1.40402909,107520.0,107510.0,0.87636564]
[1751231475070,1.40402909,107520.0,107510.0,0.93215949]
[1751231475374,1.40402909,107520.0,107510.0,0.8903998]
[1751231476773,0.88084587,107520.0,107510.0,0.8903998]
[1751231476976,1.40402909,107520.0,107510.0,0.8903998]
[1751231479284,1.40402909,107520.0,107510.0,1.15199141]
[1751231480980,1.40402909,107520.0,107510.0,1.16645774]
[1751231481278,1.40402909,107520.0,107510.0,0.90486613]
[1751231483283,1.40402909,107520.0,107510.0,0.8903998]
[1751231483782,0.88084587,107520.0,107510.0,0.8903998]
[1751231483982,1.40402909,107520.0,107510.0,0.8903998]
[1751231486782,1.40402909,107520.0,107510.0,0.94619365]
[1751231487687,1.40402909,107520.0,107510.0,0.90485066]
[1751231489690,0.88084587,107520.0,107510.0,0.90485066]
[1751231489891,1.40402909,107520.0,107510.0,0.90485066]
[1751231490086,1.04322909,107520.0,107510.0,0.90485066]
[1751231490291,1.40402909,107520.0,107510.0,0.90485066]
[1751231490493,0.88084587,107520.0,107510.0,0.90485066]
[1751231490689,1.40402909,107520.0,107510.0,0.93525066]
[1751231491894,1.40402909,107520.0,107510.0,0.9212165]
[1751231497298,1.40402909,107520.0,107510.0,0.97701035]
[1751231498297,1.40402909,107520.0,107510.0,0.93983221]
[1751231499897,1.40402909,107520.0,107510.0,1.20142382]
[1751231511900,1.40402909,107520.0,107510.0,0.93983221]
[1751231515108,1.40402909,107520.0,107510.0,1.20142382]
[1751231516009,1.04322909,107520.0,107510.0,1.20142382]
[1751231516208,1.40402909,107520.0,107510.0,1.20142382]
[1751231521214,1.40402909,107520.0,107510.0,0.93983221]
[1751231522817,1.40402909,107520.0,107510.0,0.79104471]
[1751231523512,1.40402909,107520.0,107510.0,0.16564471]
[1751231523714,1.40402909,107520.0,107510.0,0.10404471]
[1751231523921,1.46642909,107520.0,107510.0,0.72088471]
[1751231524717,1.46642909,107520.0,107510.0,0.68796471]
[1751231528418,1.46642909,107520.0,107510.0,0.68768471]
[1751231529319,1.46642909,107520.0,107510.0,0.67323385]
[1751231530208,1.82722909,107520.0,107510.0,0.67323385]
[1751231531822,1.82722909,107520.0,107510.0,0.05679385]
[1751231535231,1.82722909,107520.0,107510.0,0.07133164]
[1751231541434,1.30404587,107520.0,107510.0,0.07133164]
[1751231541633,1.82722909,107520.0,107510.0,0.07133164]
[1751231544636,1.82722909,107520.0,107510.0,0.10323164]
[1751231545533,1.82722909,107520.0,107510.0,0.13383164]
[1751231549939,1.10562909,107520.0,107510.0,0.13383164]
[1751231550141,2.04722909,107520.0,107510.0,0.13383164]
[1751231552243,1.32562909,107520.0,107510.0,0.13383164]
[1751231552444,2.04722909,107520.0,107510.0,0.13383164]
[1751231553944,1.32562909,107520.0,107510.0,0.13383164]
[1751231554246,2.04722909,107520.0,107510.0,0.13383164]
[1751231556044,1.32562909,107520.0,107510.0,0.13383164]
[1751231556245,2.04722909,107520.0,107510.0,0.13383164]
[1751231559047,1.32562909,107520.0,107510.0,0.13383164]
[1751231559345,2.04722909,107520.0,107510.0,0.13383164]
[1751231565944,1.95362909,107520.0,107510.0,0.10323164]
[1751231566153,2.04862909,107520.0,107510.0,0.08869385]
[1751231566342,2.04862909,107520.0,107510.0,0.08458727]
[1751231567151,2.04862909,107520.0,107510.0,0.07010877]
[1751231567752,2.04862909,107520.0,107510.0,0.08458372]
[1751231568450,2.04862909,107520.0,107510.0,0.11498372]
[1751231571258,2.04862909,107520.0,107510.0,0.1428818]
[1751231574157,2.04862909,107520.0,107510.0,0.12840685]
[1751231574357,2.04862909,107520.0,107510.0,0.10050877]
[1751231576059,2.04862909,107520.0,107510.0,0.15630262]
[1751231576559,1.52544587,107520.0,107510.0,0.15630262]
[1751231576750,2.04862909,107520.0,107510.0,0.15630262]
[1751231582061,1.98642909,107520.0,107510.0,0.15630262]
[1751231585763,1.46324587,107520.0,107510.0,0.15630262]
[1751231585960,1.98642909,107520.0,107510.0,0.15630262]
[1751231588060,1.98642909,107520.0,107510.0,0.11909385]
[1751231588364,1.98642909,107520.0,107510.0,0.15628953]
[1751231594870,1.98642909,107520.0,107510.0,0.17081636]
[1751231595071,1.98642909,107520.0,107510.0,0.11502251]
[1751231595365,1.98642909,107520.0,107510.0,0.17081636]
[1751231596373,1.98642909,107520.0,107510.0,0.11502251]
[1751231597074,1.46324587,107520.0,107510.0,0.11502251]
[1751231597372,1.98642909,107520.0,107510.0,0.11502251]
[1751231597971,1.46324587,107520.0,107510.0,0.11502251]
[1751231598172,1.98642909,107520.0,107510.0,0.11502251]
[1751231598573,1.98642909,107520.0,107510.0,0.17081636]
[1751231598775,1.98642909,107520.0,107510.0,0.20161636]
[1751231604480,1.98642909,107520.0,107510.0,0.14582251]
[1751231610182,1.98642909,107520.0,107510.0,0.18708953]
[1751231612985,1.26482909,107520.0,107510.0,0.18708953]
[1751231613487,1.98642909,107520.0,107510.0,0.18708953]
[1751231614188,1.26482909,107520.0,107510.0,0.18708953]
[1751231614390,1.26482909,107520.0,107510.0,0.14989385]
[1751231614391,1.98642909,107520.0,107510.0,0.14989385]
[1751231618783,1.98642909,107520.0,107510.0,0.1778358]
[1751231625289,1.62562909,107520.0,107510.0,0.34113684]
[1751231625597,1.29562909,107520.0,107510.0,0.19234934]
[1751231626596,1.29562909,107520.0,107510.0,0.20648166]
[1751231626997,0.77244587,107520.0,107510.0,0.20648166]
[1751231627198,1.29562909,107520.0,107510.0,0.20648166]
[1751231631206,0.77244587,107520.0,107510.0,0.20648166]
[1751231631397,1.29562909,107520.0,107510.0,0.20648166]
[1751231634898,1.29562909,107520.0,107510.0,0.1878921]
[1751231639907,1.29562909,107520.0,107510.0,0.17337856]
[1751231640104,1.29562909,107520.0,107510.0,0.18791622]
[1751231640303,0.1487875,107510.0,107500.0,0.07426127]
[1751231640504,1.44816742,107510.0,107500.0,0.0558076]
[1751231640703,1.54713089,107510.0,107500.0,0.0558076]
[1751231641201,1.28553928,107510.0,107500.0,0.0558076]
[1751231642207,1.28553928,107510.0,107500.0,0.0588076]
[1751231642505,1.28553928,107510.0,107500.0,0.0608076]
[1751231642807,1.28553928,107510.0,107500.0,0.0588076]
[1751231643107,1.28553928,107510.0,107500.0,0.0568076]
[1751231643409,1.54713089,107510.0,107500.0,0.0568076]
[1751231644611,1.28553928,107510.0,107500.0,0.0568076]
[1751231644804,1.28553928,107510.0,107500.0,0.0884076]
[1751231645412,1.54713089,107510.0,107500.0,0.0884076]
[1751231646905,1.77713089,107510.0,107500.0,0.0884076]
[1751231647110,1.77713089,107510.0,107500.0,0.0568076]
[1751231647311,1.92737089,107510.0,107500.0,0.0568076]
[1751231647611,0.1488152,107490.0,107480.0,0.67462127]
[1751231647811,0.64040681,107490.0,107480.0,0.73502127]
[1751231648110,0.64040681,107490.0,107480.0,0.76652127]
[1751231648406,0.64040681,107490.0,107480.0,0.16616127]
[1751231649109,0.64040681,107490.0,107480.0,0.16916127]
[1751231649507,0.64040681,107490.0,107480.0,0.0949]
[1751231650710,0.64956106,107490.0,107480.0,0.0989]
[1751231651411,1.01036106,107490.0,107480.0,0.0989]
[1751231652610,1.04146106,107490.0,107480.0,0.0989]
[1751231653212,1.04146106,107490.0,107480.0,0.12674806]
[1751231654414,1.04146106,107490.0,107480.0,0.0989]
[1751231655415,0.77986945,107490.0,107480.0,0.0989]
[1751231655614,1.04146106,107490.0,107480.0,0.0989]
[1751231656813,1.30305267,107490.0,107480.0,0.0989]
[1751231657013,1.07446106,107490.0,107480.0,0.0674]
[1751231657405,1.07446106,107490.0,107480.0,0.09523325]
[1751231658619,0.71366106,107490.0,107480.0,0.09523325]
[1751231658810,1.43526106,107490.0,107480.0,0.09523325]
[1751231661115,1.69685267,107490.0,107480.0,0.09523325]
[1751231661314,2.12224891,107490.0,107480.0,0.03483325]
[1751231661510,2.27068891,107490.0,107480.0,0.03483325]
[1751231662619,2.00068891,107490.0,107480.0,0.03483325]
[1751231667319,2.00068891,107490.0,107480.0,0.06493325]
[1751231670225,2.00068891,107490.0,107480.0,0.09763325]
[1751231670423,2.00068891,107490.0,107480.0,0.13476675]
[1751231670722,2.00068891,107490.0,107480.0,0.07196675]
[1751231673430,2.22068891,107490.0,107480.0,0.07196675]
[1751231674825,2.22068891,107490.0,107480.0,0.13496675]
[1751231677233,2.22068891,107490.0,107480.0,0.14950914]
[1751231677633,1.99068891,107490.0,107480.0,0.14950914]
[1751231678141,1.99068891,107490.0,107480.0,0.09057589]
[1751231678434,1.99068891,107490.0,107480.0,0.0441335]
[1751231678633,2.22068891,107490.0,107480.0,0.07202797]
[1751231684941,2.22068891,107490.0,107480.0,0.13532797]
[1751231687145,2.22068891,107490.0,107480.0,0.07202797]
[1751231690249,1.49908891,107490.0,107480.0,0.07202797]
[1751231690448,2.22068891,107490.0,107480.0,0.07202797]
[1751231695453,2.22068891,107490.0,107480.0,0.10202797]
[1751231696048,2.22068891,107490.0,107480.0,0.13332797]
[1751231703955,2.22068891,107490.0,107480.0,0.14787107]
[1751231705760,2.22068891,107490.0,107480.0,0.08657107]
[1751231706165,2.22068891,107490.0,107480.0,0.0441335]
[1751231706369,2.22068891,107490.0,107480.0,0.07204901]
[1751231706967,2.22068891,107490.0,107480.0,0.06904901]
[1751231707667,2.22068891,107490.0,107480.0,0.06604901]
[1751231712968,2.22068891,107490.0,107480.0,0.09684901]
[1751231715063,2.22068891,107490.0,107480.0,0.12784901]
[1751231717868,2.22068891,107490.0,107480.0,0.09071551]
[1751231720266,1.69750569,107490.0,107480.0,0.09071551]
[1751231720570,2.22068891,107490.0,107480.0,0.09071551]
[1751231724675,2.07224891,107490.0,107480.0,0.09071551]
[1751231724974,2.81028891,107490.0,107480.0,0.09071551]
[1751231725477,2.81028891,107490.0,107480.0,0.12784901]
[1751231731477,2.81028891,107490.0,107480.0,0.02891551]
[1751231733285,2.81028891,107490.0,107480.0,0.06201551]
[1751231733973,2.81028891,107490.0,107480.0,0.07607629]
[1751231738088,2.81028891,107490.0,107480.0,0.10897629]
[1751231738980,2.81028891,107490.0,107480.0,0.09491551]
[1751231742185,2.28710569,107490.0,107480.0,0.09491551]
[1751231742389,2.81028891,107490.0,107480.0,0.09491551]
[1751231748592,2.08868891,107490.0,107480.0,0.09491551]
[1751231748792,2.81028891,107490.0,107480.0,0.09491551]
[1751231749793,2.28710569,107490.0,107480.0,0.09491551]
[1751231749993,2.81028891,107490.0,107480.0,0.09491551]
[1751231753295,2.08868891,107490.0,107480.0,0.09491551]
[1751231753596,2.81028891,107490.0,107480.0,0.09491551]
[1751231761201,2.08868891,107490.0,107480.0,0.09491551]
[1751231761401,2.81028891,107490.0,107480.0,0.09491551]
[1751231769003,1.45426569,107490.0,107480.0,0.09491551]
[1751231769209,2.4489373,107490.0,107480.0,0.12661551]
[1751231769403,2.71052891,107490.0,107480.0,0.1358335]
[1751231769906,1.97744891,107490.0,107480.0,0.1358335]
[1751231770105,2.71040891,107490.0,107480.0,0.1358335]
[1751231770503,1.97744891,107490.0,107480.0,0.1358335]
[1751231770703,2.71032891,107490.0,107480.0,0.1358335]
[1751231773311,2.71032891,107490.0,107480.0,0.16373628]
[1751231779813,2.70960891,107490.0,107480.0,0.16373628]
[1751231784816,2.18642569,107490.0,107480.0,0.16373628]
[1751231785012,2.70960891,107490.0,107480.0,0.16373628]
[1751231786211,2.18642569,107490.0,107480.0,0.16373628]
[1751231786416,2.70960891,107490.0,107480.0,0.16373628]
[1751231788315,2.18642569,107490.0,107480.0,0.16373628]
[1751231788516,2.70960891,107490.0,107480.0,0.16373628]
[1751231793218,2.18642569,107490.0,107480.0,0.16373628]
[1751231793419,2.70960891,107490.0,107480.0,0.16373628]
[1751231794221,2.18642569,107490.0,107480.0,0.16373628]
[1751231794423,2.70960891,107490.0,107480.0,0.16373628]
[1751231795222,2.70960891,107490.0,107480.0,0.1358335]
[1751231797124,2.74030891,107490.0,107480.0,0.1358335]
[1751231797325,2.74030891,107490.0,107480.0,0.1915106]
[1751231799730,2.73762891,107490.0,107480.0,0.1915106]
[1751231800931,2.00814891,107490.0,107480.0,0.1915106]
[1751231801230,2.73750891,107490.0,107480.0,0.1915106]
[1751231802027,2.00814891,107490.0,107480.0,0.1915106]
[1751231802231,2.73730891,107490.0,107480.0,0.1915106]
[1751231802531,2.21412569,107490.0,107480.0,0.1915106]
[1751231802732,2.73730891,107490.0,107480.0,0.1915106]
[1751231803432,2.00814891,107490.0,107480.0,0.1915106]
[1751231803630,2.73730891,107490.0,107480.0,0.1915106]
[1751231804133,2.00814891,107490.0,107480.0,0.1915106]
[1751231804432,2.73722891,107490.0,107480.0,0.1915106]
[1751231805833,2.21404569,107490.0,107480.0,0.1915106]
[1751231806033,2.73722891,107490.0,107480.0,0.1915106]
[1751231807329,2.00814891,107490.0,107480.0,0.1915106]
[1751231807536,1.97744891,107490.0,107480.0,0.1915106]
[1751231807729,2.70624891,107490.0,107480.0,0.1915106]
[1751231808228,2.70624891,107490.0,107480.0,0.1358335]
[1751231808534,2.4446573,107490.0,107480.0,0.1358335]
[1751231813838,2.18306569,107490.0,107480.0,0.1358335]
[1751231814034,2.4446573,107490.0,107480.0,0.1915106]
[1751231814535,2.4446573,107490.0,107480.0,0.1358335]
[1751231817234,2.4771573,107490.0,107480.0,0.17829556]
[1751231820637,1.7158573,107490.0,107480.0,0.17829556]
[1751231820838,1.0704151,107490.0,107480.0,0.82238801]
[1751231821043,0.14,107490.0,107480.0,0.84093161]
[1751231821346,0.14,107490.0,107480.0,1.2568419]
[1751231821739,0.2888152,107490.0,107480.0,1.2568419]
[1751231822442,0.2888152,107490.0,107480.0,1.8420819]
[1751231823441,0.2888152,107490.0,107480.0,1.85147604]
[1751231823941,0.2888152,107490.0,107480.0,1.8420819]
[1751231824142,0.2888152,107490.0,107480.0,2.0920819]
[1751231825244,0.2888152,107490.0,107480.0,1.8420819]
[1751231825646,0.2888152,107490.0,107480.0,2.0281539]
[1751231826245,0.2888152,107490.0,107480.0,1.95389263]
[1751231828349,0.2888152,107490.0,107480.0,2.00957814]
[1751231829145,0.2888152,107490.0,107480.0,2.00957199]
[1751231834447,0.2888152,107490.0,107480.0,2.08383326]
[1751231834653,0.2888152,107490.0,107480.0,2.0281539]
[1751231836152,0.2888152,107490.0,107480.0,1.8420819]
[1751231836452,0.2888152,107490.0,107480.0,2.0281539]
[1751231839252,0.2888152,107490.0,107480.0,2.01361161]
[1751231840048,0.14,107490.0,107480.0,2.01361161]
[1751231840751,0.2888152,107490.0,107480.0,2.01361161]
[1751231843754,0.2888152,107490.0,107480.0,1.82753961]
[1751231844053,0.14,107490.0,107480.0,1.82753961]
[1751231844551,0.5467909,107510.0,107500.0,0.1488013]
[1751231844751,0.5467909,107510.0,107500.0,1.72634203]
[1751231844752,0.1787929,107510.0,107500.0,1.72634203]
[1751231844951,0.1787929,107510.0,107500.0,1.97005549]
[1751231845157,0.1787929,107510.0,107500.0,2.00717416]
[1751231845457,0.1787929,107510.0,107500.0,1.97919138]
[1751231845663,0.035,107510.0,107500.0,2.00709441]
[1751231846454,0.034,107510.0,107500.0,2.00709441]
[1751231846654,0.034,107510.0,107500.0,1.9422687]
[1751231846853,0.034,107510.0,107500.0,2.01652997]
[1751231847054,0.034,107510.0,107500.0,1.9422687]
[1751231847855,0.033,107510.0,107500.0,1.9422687]
[1751231848059,0.033,107510.0,107500.0,2.01652997]
[1751231849155,0.033,107510.0,107500.0,1.95181195]
[1751231849360,0.033,107510.0,107500.0,2.04463854]
[1751231849962,0.1487736,107520.0,107510.0,0.1487875]
[1751231850160,0.2587736,107520.0,107510.0,1.19835523]
[1751231850360,0.2587736,107520.0,107510.0,1.33851523]
[1751231850561,0.2587736,107520.0,107510.0,1.07692362]
[1751231851261,0.2627736,107520.0,107510.0,1.07692362]
[1751231851663,0.2647736,107520.0,107510.0,1.07692362]
[1751231852963,0.2647736,107520.0,107510.0,0.81533201]
[1751231853261,0.2647736,107520.0,107510.0,1.58568214]
[1751231854558,0.2647736,107520.0,107510.0,1.64133934]
[1751231859470,0.2647736,107520.0,107510.0,1.67193934]
[1751231859967,0.2647736,107520.0,107510.0,1.31113934]
[1751231860171,0.2647736,107520.0,107510.0,1.67193934]
[1751231868277,0.2647736,107520.0,107510.0,1.61628214]
[1751231869184,0.2647736,107520.0,107510.0,1.69056362]
[1751231869479,0.2647736,107520.0,107510.0,1.61628214]
[1751231870179,0.2647736,107520.0,107510.0,1.69056362]
[1751231882389,0.2647736,107520.0,107510.0,1.42897201]
[1751231882582,0.2647736,107520.0,107510.0,1.69056362]
[1751231889582,0.116,107520.0,107510.0,1.69056362]
[1751231889778,0.2647736,107520.0,107510.0,1.87787375]
[1751231891884,0.2647736,107520.0,107510.0,1.35469053]
[1751231892090,0.2647736,107520.0,107510.0,1.87787375]
[1751231892990,0.2647736,107520.0,107510.0,1.97070034]
[1751231896687,0.116,107520.0,107510.0,1.97070034]
[1751231897592,0.2647736,107520.0,107510.0,1.97070034]
[1751231899285,0.2647736,107520.0,107510.0,1.94279731]
[1751231901601,0.2647736,107520.0,107510.0,2.01717498]
[1751231901799,0.2647736,107520.0,107510.0,1.92434839]
[1751231903989,0.2647736,107520.0,107510.0,1.56354839]
[1751231904195,0.2647736,107520.0,107510.0,1.95222776]
[1751231906197,0.2647736,107520.0,107510.0,1.87785009]
[1751231906704,0.2647736,107520.0,107510.0,1.97067668]
[1751231909508,0.116,107520.0,107510.0,1.97067668]
[1751231909803,0.2647737,107520.0,107510.0,1.97067668]
[1751231910704,0.116,107520.0,107510.0,1.97067668]
[1751231910898,0.2647736,107520.0,107510.0,1.97067668]
[1751231915805,0.2647736,107520.0,107510.0,1.94279731]
[1751231919410,0.1547736,107520.0,107510.0,1.94279731]
[1751231921815,0.1547736,107520.0,107510.0,1.41961409]
[1751231922015,0.1547736,107520.0,107510.0,1.94279731]
[1751231922315,0.1547736,107520.0,107510.0,1.97077626]
[1751231922711,0.1547736,107520.0,107510.0,1.95235676]
[1751231924519,0.1527736,107520.0,107510.0,1.95235676]
[1751231924720,0.1537736,107520.0,107510.0,1.95235676]
[1751231925219,0.1507736,107520.0,107510.0,1.95235676]
[1751231926319,0.1507736,107520.0,107510.0,1.59155676]
[1751231926519,0.1507736,107520.0,107510.0,1.95235676]
[1751231931318,0.1507736,107520.0,107510.0,1.87794967]
[1751231931520,0.1507736,107520.0,107510.0,1.97077626]
[1751231936922,0.1507736,107520.0,107510.0,1.44759304]
[1751231937322,0.1507736,107520.0,107510.0,1.70918465]
[1751231941729,0.1507736,107520.0,107510.0,1.44759304]
[1751231941929,0.1507736,107520.0,107510.0,1.70918465]
[1751231945525,0.4448131,107540.0,107530.0,0.1487599]
[1751231945730,0.5105461,107540.0,107530.0,1.48973879]
[1751231946028,0.5105461,107540.0,107530.0,1.47892207]
[1751231946526,0.5135461,107540.0,107530.0,1.49345621]
[1751231946831,0.1527461,107540.0,107530.0,1.56787293]
[1751231947630,0.004,107540.0,107530.0,1.56787293]
[1751231948127,0.150746,107540.0,107530.0,1.56787293]
[1751231949329,0.154746,107540.0,107530.0,1.56787293]
[1751231950928,0.150746,107540.0,107530.0,1.56787293]
[1751231952534,0.150746,107540.0,107530.0,1.56785569]
[1751231952734,0.150746,107540.0,107530.0,1.30626408]
[1751231952929,0.150746,107540.0,107530.0,0.85245569]
[1751231953138,0.150746,107540.0,107530.0,0.59086408]
[1751231953334,0.150746,107540.0,107530.0,1.30574408]
[1751231953535,0.150746,107540.0,107530.0,0.59086408]
[1751231953834,0.511546,107540.0,107530.0,1.30574408]
[1751231955829,0.511546,107540.0,107530.0,1.23132736]
[1751231957930,0.511546,107540.0,107530.0,1.2870149]
[1751231958932,0.511546,107540.0,107530.0,1.2867349]
[1751231960837,0.511546,107540.0,107530.0,1.3179349]
[1751231961140,0.511546,107540.0,107530.0,1.303418]
[1751231964540,0.511546,107540.0,107530.0,1.32214718]
[1751231965238,0.511546,107540.0,107530.0,1.30342101]
[1751231965439,0.511546,107540.0,107530.0,1.24773046]
[1751231967240,0.511546,107540.0,107530.0,1.32214718]
[1751231968140,0.150746,107540.0,107530.0,1.32214718]
[1751231968439,0.511546,107540.0,107530.0,1.32214718]
[1751231971142,0.150746,107540.0,107530.0,1.32214718]
[1751231971441,0.511546,107540.0,107530.0,1.32214718]
[1751231975636,0.511546,107540.0,107530.0,1.06055557]
[1751231975843,0.511546,107540.0,107530.0,1.32214718]
[1751231977545,0.511546,107540.0,107530.0,1.06055557]
[1751231977743,0.511546,107540.0,107530.0,1.32214718]
[1751231981547,0.511546,107540.0,107530.0,1.33658162]
[1751231984651,0.3628,107540.0,107530.0,1.59817323]
[1751231984850,0.5095323,107550.0,107540.0,0.1487461]
[1751231985057,0.5095323,107550.0,107540.0,0.82932176]
[1751231985653,0.5095323,107550.0,107540.0,1.47965848]
[1751231987148,0.3628,107550.0,107540.0,1.41614076]
[1751231987551,0.37311853,107550.0,107540.0,1.41614076]
[1751231988243,0.3638,107550.0,107540.0,1.41614076]
[1751231995552,0.5125323,107550.0,107540.0,1.41614076]
[1751231996153,0.3638,107550.0,107540.0,1.41614076]
[1751231996355,0.6738,107550.0,107540.0,1.41614076]
[1751231996954,0.6738,107550.0,107540.0,1.47965848]
[1751231997955,0.8225323,107550.0,107540.0,1.47965848]
[1751231999161,0.8225323,107550.0,107540.0,0.90373848]
[1751231999359,0.8225323,107550.0,107540.0,1.47909848]
[1751232007965,0.4617323,107550.0,107540.0,1.47909848]
[1751232008266,0.8225323,107550.0,107540.0,1.47909848]
[1751232009865,0.8225323,107550.0,107540.0,1.47919577]
[1751232010066,0.123,107550.0,107540.0,1.47919577]
[1751232010267,0.123,107550.0,107540.0,1.40477905]
[1751232011366,0.123,107550.0,107540.0,1.49760564]
[1751232011970,0.123,107550.0,107540.0,1.49760545]
[1751232013274,0.123,107550.0,107540.0,1.50850411]
[1751232018979,0.123,107550.0,107540.0,1.41567752]
[1751232019480,0.123,107550.0,107540.0,1.50850411]
[1751232021980,0.123,107550.0,107540.0,1.58284361]
[1751232022180,0.123,107550.0,107540.0,1.49001702]
[1751232025684,0.123,107550.0,107540.0,1.47911836]
[1751232029887,0.123,107550.0,107540.0,0.90375836]
[1751232030088,0.123,107550.0,107540.0,1.61375836]
[1751232031891,0.123,107550.0,107540.0,1.63224545]
[1751232045201,0.123,107550.0,107540.0,1.53941886]
[1751232051306,0.003,107550.0,107540.0,1.53941886]
[1751232051498,0.003,107550.0,107540.0,1.63224545]
[1751232052210,0.5095208,107560.0,107550.0,0.1487323]
[1751232052506,0.5095208,107560.0,107550.0,0.85035691]
[1751232052705,0.5095208,107560.0,107550.0,0.88115691]
[1751232053303,0.5125208,107560.0,107550.0,0.88115691]
[1751232054209,0.5155208,107560.0,107550.0,0.88115691]
[1751232056011,0.5125208,107560.0,107550.0,0.88115691]
[1751232056309,0.5135208,107560.0,107550.0,0.88115691]
[1751232056498,0.5135208,107560.0,107550.0,0.6195653]
[1751232056696,0.5135208,107560.0,107550.0,0.88115691]
[1751232057308,0.5115208,107560.0,107550.0,0.6195653]
[1751232057508,0.5115208,107560.0,107550.0,0.88115691]
[1751232058609,0.5115208,107560.0,107550.0,0.6195653]
[1751232064118,0.1507208,107560.0,107550.0,0.6195653]
[1751232064314,0.5115208,107560.0,107550.0,0.6195653]
[1751232066515,0.5115208,107560.0,107550.0,0.5452344]
[1751232067017,0.5115208,107560.0,107550.0,0.80682601]
[1751232071021,0.5115208,107560.0,107550.0,0.88115691]
[1751232073626,0.5115208,107560.0,107550.0,0.89532519]
[1751232075621,0.5115208,107560.0,107550.0,0.63373358]
[1751232076128,0.5115208,107560.0,107550.0,0.89532519]
[1751232077626,0.3628,107560.0,107550.0,0.89532519]
[1751232078425,0.3628,107560.0,107550.0,0.37214197]
[1751232078631,0.3628,107560.0,107550.0,0.89532519]
[1751232081726,0.3628,107560.0,107550.0,0.90450569]
[1751232082125,0.3628,107560.0,107550.0,0.97882992]
[1751232083941,0.3608,107560.0,107550.0,0.97982992]
[1751232089539,0.15893322,107570.0,107550.0,0.83109762]
[1751232089744,0.15893322,107570.0,107560.0,1.36347247]
[1751232090045,0.51973322,107570.0,107560.0,1.42015124]
[1751232090640,0.52073322,107570.0,107560.0,1.42015124]
[1751232091142,0.52173322,107570.0,107560.0,1.42015124]
[1751232092840,0.55433322,107570.0,107560.0,1.42015124]
[1751232093037,0.58593322,107570.0,107560.0,1.42015124]
[1751232100655,0.58593322,107570.0,107560.0,1.40598296]
[1751232104751,0.5767133,107570.0,107560.0,1.40598296]
[1751232106659,0.58605714,107570.0,107560.0,1.40598296]
[1751232108663,0.5125133,107570.0,107560.0,1.40598296]
[1751232108960,0.5125133,107570.0,107560.0,1.43908296]
[1751232110257,0.3638,107570.0,107560.0,1.43908296]
[1751232110560,0.5125047,107570.0,107560.0,1.43908296]
[1751232111757,0.5125047,107570.0,107560.0,1.4533301]
[1751232112362,0.3638,107570.0,107560.0,1.4533301]
[1751232115163,0.3638,107570.0,107560.0,1.47197025]
[1751232120769,0.3638,107570.0,107560.0,1.60609025]
[1751232122267,0.3638,107570.0,107560.0,1.59155871]
[1751232122466,0.3638,107570.0,107560.0,1.60608871]
[1751232134382,0.3638,107570.0,107560.0,1.08290549]
[1751232134583,0.3638,107570.0,107560.0,1.60608871]
[1751232136583,0.3638,107570.0,107560.0,1.60602751]
[1751232139882,0.3638,107570.0,107560.0,0.90002751]
[1751232140083,0.3638,107570.0,107560.0,1.60382751]
[1751232142485,0.3638,107570.0,107560.0,1.86541912]
[1751232142682,0.3608,107580.0,107570.0,0.1487046]
[1751232142883,0.3608,107580.0,107570.0,0.88051158]
[1751232143180,0.3608,107580.0,107570.0,0.82719577]
[1751232143384,0.3608,107590.0,107580.0,0.1486908]
[1751232143586,0.3608,107590.0,107580.0,1.43641677]
[1751232144085,0.3608,107590.0,107580.0,1.42188869]
[1751232144386,0.3608,107590.0,107580.0,1.43641677]
[1751232144784,0.3608,107590.0,107580.0,1.45063529]
[1751232145183,0.3608,107590.0,107580.0,1.48776069]
[1751232145587,0.3618,107590.0,107580.0,1.48776069]
[1751232145983,0.3658,107590.0,107580.0,1.48776069]
[1751232146587,0.3658,107590.0,107580.0,1.43204497]
[1751232147378,0.3658,107590.0,107580.0,1.48776069]
[1751232151893,0.3658,107590.0,107580.0,1.47323261]
[1751232152891,0.3658,107590.0,107580.0,1.74921055]
[1751232153091,0.3658,107590.0,107580.0,1.71208515]
[1751232153293,0.3658,107590.0,107580.0,1.43610721]
[1751232153993,0.3658,107590.0,107580.0,1.69769882]
[1751232154294,0.3658,107590.0,107580.0,1.47316974]
[1751232154794,0.3658,107590.0,107580.0,1.56926721]
[1751232155295,0.3658,107590.0,107580.0,1.57874809]
[1751232155790,0.3658,107590.0,107580.0,1.55076914]
[1751232156498,0.3658,107590.0,107580.0,1.01810504]
[1751232156694,0.3658,107590.0,107580.0,1.54128826]
[1751232158796,0.3658,107590.0,107580.0,1.55055045]
[1751232159298,0.3658,107590.0,107580.0,1.54128826]
[1751232163001,0.3658,107590.0,107580.0,1.55062311]
[1751232163203,0.3658,107590.0,107580.0,1.54128826]
[1751232167509,0.3658,107590.0,107580.0,1.49466892]
[1751232168011,0.3658,107590.0,107580.0,1.48557254]
[1751232168508,0.3648,107590.0,107580.0,1.48557254]
[1751232168805,0.3648,107590.0,107580.0,1.47135402]
[1751232168806,0.3658,107590.0,107580.0,1.47135402]
[1751232169008,0.005,107590.0,107580.0,1.47135402]
[1751232169208,0.005,107590.0,107580.0,1.54568492]
[1751232169401,0.005,107590.0,107580.0,1.80727653]
[1751232169402,0.002,107590.0,107580.0,1.80727653]